bitfinex/quotes_ETHUSD_20220109
["timestamp","ask_amount","ask_price","bid_price","bid_amount"]
[1641691651413,0.00341054,3107.4,3106.9,3.92998928]
[1641691651613,0.80478,3107.2,3106.9,0.82998928]
[1641691652018,0.00170527,3107.1,3106.9,0.82998928]
[1641691652415,0.00113685,3107.0,3106.9,0.82998928]
[1641691652616,0.00113685,3107.0,3106.9,2.65794751]
[1641691654065,0.00113685,3107.0,3106.9,3.25794751]
[1641691654567,0.00113685,3107.0,3106.9,4.25794751]
[1641691654765,0.00113685,3107.0,3106.9,7.00794751]
[1641691656368,0.00113685,3107.0,3106.9,3.25794751]
[1641691656568,0.00113685,3107.0,3106.9,4.25794751]
[1641691657372,0.00113685,3107.0,3106.9,8.35291206]
[1641691658816,0.00113685,3107.0,3106.9,7.35291206]
[1641691659015,0.00113685,3107.0,3106.9,8.35291206]
[1641691659615,0.00113685,3107.0,3106.9,4.25794751]
[1641691659820,0.00113685,3107.0,3106.9,7.65794751]
[1641691660015,0.00113685,3107.0,3106.9,4.25794751]
[1641691660214,1.31399956,3107.7,3107.0,4.65]
[1641691660416,1.31399956,3107.7,3107.4,1.6093306]
[1641691660617,0.00341054,3107.6,3107.5,1.85513245]
[1641691660816,0.80808054,3107.6,3107.5,1.85513245]
[1641691661865,0.00341054,3107.6,3107.5,1.85513245]
[1641691662467,0.00341054,3107.6,3107.4,2.4139806]
[1641691662666,0.00341054,3107.6,3107.4,2.7139806]
[1641691662869,0.00284211,3107.5,3107.4,2.7139806]
[1641691663066,0.00284211,3107.5,3107.4,3.0139806]
[1641691663469,0.00284211,3107.5,3107.2,1.6093212]
[1641691663669,0.00284211,3107.5,3107.1,4.09411748]
[1641691663870,0.00227369,3107.4,3107.1,4.09411748]
[1641691664268,0.00170527,3107.3,3107.1,4.09411748]
[1641691664469,0.00170527,3107.3,3106.7,10.38517942]
[1641691664669,0.00113684,3107.2,3106.7,10.38517942]
[1641691664869,0.00113684,3107.2,3106.7,8.77564942]
[1641691665073,0.80488,3107.2,3106.7,8.77564942]
[1641691665315,0.80488,3107.2,3106.7,5.57034942]
[1641691665518,0.80488,3107.2,3106.7,1.47623194]
[1641691666118,0.80488,3107.2,3106.7,0.87623194]
[1641691666119,0.87606739,3107.2,3106.7,0.87623194]
[1641691666317,0.52727369,3107.4,3107.3,1.14864596]
[1641691666519,1.52727369,3107.4,3107.3,1.14864596]
[1641691666716,0.525,3107.4,3107.3,1.14864596]
[1641691666916,1.40115739,3107.4,3107.3,1.14864596]
[1641691667727,1.40115739,3107.4,3106.7,0.87623194]
[1641691667728,1.61,3107.1,3106.7,0.87623194]
[1641691668119,0.07118739,3107.0,3106.7,0.87623194]
[1641691668519,0.87618739,3107.0,3106.7,0.87623194]
[1641691668965,0.805,3107.0,3106.7,0.87623194]
[1641691670469,0.805,3107.0,3105.9,6.16]
[1641691670470,4.35990803,3106.0,3105.9,6.16]
[1641691670670,2.24759209,3106.0,3105.9,6.16]
[1641691670870,3.24759209,3106.0,3105.9,6.16]
[1641691671068,3.31877948,3106.0,3105.9,6.16]
[1641691671472,3.31877948,3106.0,3105.3,11.7151788]
[1641691671672,0.80532,3105.6,3105.2,6.16]
[1641691671871,0.80532,3105.6,3105.4,0.00909478]
[1641691672914,1.61063,3105.7,3105.6,1.02992852]
[1641691673110,0.30990803,3106.0,3105.6,0.3]
[1641691673312,0.30990803,3106.0,3105.6,6.46795793]
[1641691673510,0.30990803,3106.0,3105.7,0.00738951]
[1641691673913,0.80514,3105.9,3105.7,0.00738951]
[1641691674111,1.92016803,3106.0,3105.7,0.00738951]
[1641691674112,0.30990803,3106.0,3105.7,0.00738951]
[1641691674311,0.30990803,3106.0,3105.7,6.16738951]
[1641691674710,0.30990803,3106.0,3105.8,0.00682108]
[1641691674910,0.30990803,3106.0,3105.8,0.30682108]
[1641691675111,0.30990803,3106.0,3105.8,7.16682108]
[1641691675314,1.11497803,3106.0,3105.9,0.00625266]
[1641691675514,1.11497803,3106.0,3105.9,2.55625266]
[1641691675710,0.30990803,3106.0,3105.9,3.55625266]
[1641691676562,0.30990803,3106.0,3105.9,0.00625266]
[1641691677362,0.30990803,3106.0,3105.9,1.00625266]
[1641691677563,0.30990803,3106.0,3105.9,3.55625266]
[1641691679565,0.30990803,3106.0,3105.9,5.65625266]
[1641691679765,1.69210044,3106.2,3106.0,4.65]
[1641691679967,1.69210044,3106.2,3106.1,0.60338336]
[1641691680266,1.69210044,3106.2,3106.1,0.60849917]
[1641691680653,1.69210044,3106.2,3106.1,0.00511581]
[1641691681854,0.80503,3107.1,3106.1,0.00511581]
[1641691682256,3.21998,3107.2,3106.1,0.00511581]
[1641691682458,2.41525,3106.8,3106.1,0.00511581]
[1641691682659,4.65,3106.6,3105.8,6.16]
[1641691682859,4.65,3106.6,3105.8,0.585]
[1641691682860,0.80537,3106.1,3105.8,0.585]
[1641691683057,0.80537,3106.1,3105.9,0.00113685]
[1641691683058,1.4194,3106.0,3105.9,0.00113685]
[1641691683756,0.9594,3106.0,3105.6,1.01364587]
[1641691683962,2.57006,3106.0,3105.6,1.01364587]
[1641691684164,2.57006,3106.0,3105.7,0.0022737]
[1641691684366,0.9594,3106.0,3105.7,0.0022737]
[1641691684565,0.9594,3106.0,3105.7,1.0022737]
[1641691684768,0.9594,3105.9,3105.7,0.0022737]
[1641691685065,1.76446,3105.9,3105.7,0.0022737]
[1641691685864,1.04730527,3106.4,3105.7,0.0022737]
[1641691686265,0.80523,3106.2,3105.7,0.0022737]
[1641691686465,1.6102,3106.1,3105.7,0.0022737]
[1641691687469,0.80509,3106.2,3105.7,0.0022737]
[1641691687721,0.7708113,3106.4,3105.7,0.0022737]
[1641691687914,0.7708113,3106.4,3105.7,0.00341054]
[1641691688516,0.46,3106.5,3105.7,0.00341054]
[1641691688719,0.80503,3106.1,3105.7,0.00341054]
[1641691689717,0.80503,3106.1,3105.8,0.80502]
[1641691689920,0.80498,3106.3,3105.8,0.80502]
[1641691690118,1.60999,3106.6,3105.9,0.00227369]
[1641691690518,1.60999,3106.6,3106.0,0.80495]
[1641691690719,1.60999,3106.6,3106.1,1.23640122]
[1641691690919,1.60999,3106.6,3106.1,1.83753806]
[1641691691777,0.80497,3106.4,3106.1,1.83753806]
[1641691693579,0.80497,3106.4,3106.1,0.60113684]
[1641691694081,0.80497,3106.4,3106.1,0.30113684]
[1641691698115,0.80497,3106.4,3106.1,0.00113684]
[1641691698515,0.80497,3106.4,3106.2,1.93257496]
[1641691698715,1.60999,3106.6,3106.2,1.93257496]
[1641691699163,0.07118739,3106.5,3106.2,0.3]
[1641691699371,0.07118739,3106.5,3106.1,1.6546145]
[1641691699566,0.80497,3106.4,3106.1,1.0546145]
[1641691699764,0.80497,3106.4,3105.7,0.00341054]
[1641691699765,2.41589,3106.1,3105.7,0.00341054]
[1641691700066,2.8758969,3106.1,3105.7,0.00341054]
[1641691700266,0.07118739,3106.0,3105.7,0.00341054]
[1641691700463,0.95228739,3106.0,3105.7,0.00341054]
[1641691700865,0.95228739,3106.0,3105.3,0.00568423]
[1641691700866,0.07118739,3105.9,3105.3,0.00568423]
[1641691701166,1.61048,3105.7,3105.2,0.00625266]
[1641691702165,0.80524,3105.6,3105.2,1.00625266]
[1641691702365,0.8811,3106.0,3105.2,1.00625266]
[1641691702366,1.61022,3106.0,3105.3,9.69341414]
[1641691702565,1.61022,3106.0,3105.4,1.0]
[1641691702820,1.61022,3106.0,3105.5,2.75836511]
[1641691703019,1.61022,3106.0,3105.6,0.6]
[1641691703215,1.61022,3106.0,3105.7,1.86074048]
[1641691703415,1.61022,3106.0,3105.7,1.86415102]
[1641691703617,1.61022,3106.0,3105.8,1.31625742]
[1641691703818,0.80509,3105.9,3105.8,1.31625742]
[1641691704017,0.80509,3105.9,3105.8,1.61341531]
[1641691704217,0.80509,3105.9,3105.8,3.95464204]
[1641691704418,0.53118739,3106.6,3105.8,3.95464204]
[1641691704623,0.53118739,3106.6,3105.8,0.6]
[1641691704624,1.61006,3106.3,3105.8,0.6]
[1641691704918,1.61006,3106.3,3105.6,1.888081]
[1641691704919,1.61006,3106.3,3105.9,0.00227369]
[1641691705116,1.61006,3106.3,3105.9,0.25227369]
[1641691705317,1.61006,3106.3,3105.7,0.80843934]
[1641691705519,1.61006,3106.3,3106.0,0.00170527]
[1641691705716,1.61006,3106.3,3105.8,0.00284211]
[1641691705917,1.61006,3106.3,3105.7,0.80845054]
[1641691706119,1.61006,3106.3,3105.8,0.3]
[1641691706321,1.61006,3106.3,3105.8,2.16370032]
[1641691706563,1.61006,3106.3,3105.8,0.30284211]
[1641691706761,1.61006,3106.3,3105.8,0.00284211]
[1641691707963,1.56006,3106.3,3105.8,0.00284211]
[1641691708163,1.56006,3106.3,3105.7,0.00341054]
[1641691709466,1.56006,3106.3,3106.2,1.63725647]
[1641691710316,1.56006,3106.3,3106.0,1.63725647]
[1641691710616,1.56006,3106.3,3106.1,0.00113684]
[1641691710820,3.1704479,3106.3,3106.1,0.00113684]
[1641691711016,3.1704479,3106.3,3106.0,1.63725647]
[1641691711017,3.3,3106.2,3106.0,1.48839331]
[1641691711317,0.8052,3106.1,3106.0,1.48839331]
[1641691711718,0.8052,3106.1,3105.4,4.5174]
[1641691711916,1.61044,3106.1,3105.4,0.6]
[1641691712118,1.61043,3105.9,3105.5,0.00341054]
[1641691712421,1.61043,3105.9,3105.5,0.30341054]
[1641691712617,1.61043,3105.9,3105.5,0.00341054]
[1641691712818,0.80522,3105.8,3105.6,0.00284212]
[1641691713016,0.80522,3105.8,3105.4,0.30397897]
[1641691713218,0.80522,3105.8,3105.4,0.00397897]
[1641691713721,0.80543,3105.6,3105.4,0.00397897]
[1641691713962,0.80543,3105.6,3105.3,6.16]
[1641691713963,4.61,3105.5,3105.3,6.16]
[1641691714165,3.06,3105.4,3105.3,6.16]
[1641691714363,3.06,3105.4,3104.9,4.08426057]
[1641691714765,3.06,3105.4,3105.0,0.00227369]
[1641691714968,3.86541,3105.4,3105.0,0.00227369]
[1641691715165,3.86541,3105.4,3104.6,0.00454739]
[1641691715365,0.8054,3105.0,3104.6,0.00454739]
[1641691716765,3.22175,3105.3,3104.6,0.00454739]
[1641691716966,3.68175,3105.3,3104.6,0.00454739]
[1641691717571,0.8054,3105.0,3104.6,0.00454739]
[1641691718026,1.61079,3105.1,3104.6,4.08880796]
[1641691718212,3.68174,3105.3,3104.6,4.08880796]
[1641691718413,3.68174,3105.3,3104.7,0.00397896]
[1641691719015,1.61082,3105.0,3104.7,0.00397896]
[1641691719618,1.61082,3105.0,3104.5,7.97316678]
[1641691719816,0.00113685,3104.9,3104.5,9.83369143]
[1641691720414,0.00113685,3104.9,3104.5,9.8014147]
[1641691720616,0.80539,3104.8,3104.5,10.6067847]
[1641691721221,0.80539,3104.8,3103.6,3.58090224]
[1641691721222,5.57972221,3104.4,3103.6,3.58090224]
[1641691721471,5.57972221,3104.4,3103.0,5.91079916]
[1641691721472,4.65,3103.6,3103.0,5.91079916]
[1641691721668,5.4288,3103.6,3103.5,6.82152235]
[1641691721868,2.35,3103.5,3103.0,11.29735331]
[1641691722472,5.57376,3103.5,3103.0,11.29735331]
[1641691722872,5.57376,3103.5,3102.4,4.97666873]
[1641691723073,0.80595,3103.0,3102.4,3.859]
[1641691723269,0.80595,3103.0,3102.5,0.01250532]
[1641691723468,0.80595,3103.0,3102.5,7.58070532]
[1641691723870,0.80595,3103.0,3102.6,0.0119369]
[1641691724870,0.80595,3103.0,3102.5,8.21509896]
[1641691725073,0.00170528,3102.9,3102.5,8.21509896]
[1641691725326,0.80588,3102.7,3102.5,8.21509896]
[1641691726028,0.00113685,3102.8,3102.6,5.15]
[1641691726428,0.00113685,3102.8,3102.5,8.81509896]
[1641691726429,0.80695685,3102.8,3102.5,8.81509896]
[1641691727029,0.80695685,3102.8,3102.5,8.1301369]
[1641691727933,0.7716059,3103.1,3102.6,3.41477357]
[1641691728134,0.7716059,3103.1,3102.6,0.00113685]
[1641691728331,0.00113685,3103.0,3102.6,0.00113685]
[1641691728972,0.80593,3103.4,3102.6,0.00113685]
[1641691729171,0.80593,3103.4,3102.6,0.0022737]
[1641691729370,0.80593,3103.4,3102.6,0.82375396]
[1641691729371,0.00170527,3103.3,3102.6,0.82375396]
[1641691729772,1.61164,3103.1,3102.7,0.00170527]
[1641691729971,0.00113685,3103.2,3102.7,0.00170527]
[1641691729972,0.80581,3103.0,3102.7,0.00170527]
[1641691731773,0.80573,3103.2,3102.7,0.00170527]
[1641691731975,0.46,3104.0,3102.7,0.00170527]
[1641691732173,0.46,3104.0,3102.7,1.17241581]
[1641691732720,0.80567,3103.4,3102.8,0.00454739]
[1641691732914,0.80567,3103.4,3103.0,0.3]
[1641691733114,0.80567,3103.4,3102.8,0.00454739]
[1641691733316,0.80567,3103.4,3103.1,0.00284212]
[1641691733513,0.80567,3103.4,3102.8,0.00454739]
[1641691734013,0.80567,3103.4,3103.1,1.48369351]
[1641691734413,0.80567,3103.4,3103.2,0.00227369]
[1641691735315,5.27507159,3103.3,3102.5,7.5301369]
[1641691735513,0.80601,3102.9,3102.6,0.00341055]
[1641691736313,0.0938842,3103.3,3102.6,0.00341055]
[1641691736314,0.46,3103.5,3102.6,0.00341055]
[1641691736568,1.61157,3103.3,3102.6,0.00341055]
[1641691736768,1.61157,3103.3,3102.6,1.14391055]
[1641691736968,1.61157,3103.3,3102.6,2.14391055]
[1641691737172,1.61157,3103.3,3102.7,0.00284212]
[1641691737370,1.61157,3103.3,3102.9,1.12934955]
[1641691737779,1.61157,3103.3,3103.0,0.00113685]
[1641691738271,1.61157,3103.3,3102.7,0.00284212]
[1641691738477,1.61157,3103.3,3103.2,1.62115209]
[1641691738669,1.61157,3103.3,3102.7,0.00284212]
[1641691739071,2.4175505,3103.3,3102.7,0.00284212]
[1641691739269,0.80598,3103.0,3102.7,0.00284212]
[1641691739671,0.46114001,3103.2,3102.7,0.00284212]
[1641691739872,0.46,3103.1,3102.7,0.00284212]
[1641691740620,0.80604,3102.9,3102.7,0.00284212]
[1641691741023,0.80598,3103.0,3102.7,0.00284212]
[1641691741821,0.75598,3103.0,3102.7,0.00284212]
[1641691746670,1.56198,3103.0,3102.7,0.00284212]
[1641691746872,2.95,3102.9,3102.5,7.48297902]
[1641691747071,0.80601,3102.7,3102.5,7.48297902]
[1641691747371,3.32270564,3103.3,3102.5,7.48297902]
[1641691747825,0.07289266,3103.2,3102.6,0.00170528]
[1641691748220,1.61201,3102.8,3102.6,0.00170528]
[1641691748620,1.61201,3102.8,3102.7,1.62184588]
[1641691749020,1.61201,3102.8,3102.7,1.62298273]
[1641691749823,4.0,3102.7,3102.5,7.48297902]
[1641691750024,5.36,3102.6,3101.8,5.19439072]
[1641691750223,5.36,3102.6,3101.9,6.9937]
[1641691750422,2.41856,3102.7,3101.9,0.54794739]
[1641691750423,1.99323169,3102.7,3101.9,0.54794739]
[1641691750621,0.07118739,3102.5,3101.9,0.00454739]
[1641691750822,0.80635,3102.2,3101.9,0.00454739]
[1641691751023,2.2,3102.1,3101.5,5.48963101]
[1641691751223,0.80634,3101.9,3101.5,5.48963101]
[1641691751477,0.80634,3101.9,3101.5,5.43963101]
[1641691751675,0.80634,3101.9,3101.2,0.9705977]
[1641691752073,0.80634,3101.9,3101.3,0.00227369]
[1641691752074,0.8064,3101.7,3101.3,0.00227369]
[1641691752273,0.8064,3101.7,3101.2,0.9705977]
[1641691752274,3.7,3101.5,3101.2,0.9705977]
[1641691752575,0.46,3101.4,3101.2,0.9705977]
[1641691752776,4.7,3101.1,3099.2,0.01247385]
[1641691752976,4.7,3101.1,3098.2,14.77]
[1641691752977,4.7,3101.1,3098.1,7.58187306]
[1641691752978,8.02428634,3098.5,3098.1,7.58187306]
[1641691753174,8.73778634,3098.5,3098.1,7.58187306]
[1641691753577,0.46,3098.4,3098.1,1.12357306]
[1641691753775,4.71273364,3098.2,3098.1,1.07357306]
[1641691753985,4.7,3098.1,3097.6,0.0033576]
[1641691754178,0.46,3098.0,3097.6,0.0033576]
[1641691754374,1.6147878,3097.9,3097.6,0.0033576]
[1641691754574,1.26746,3097.8,3097.5,3.01831304]
[1641691754775,2.42243,3097.7,3097.5,3.01831304]
[1641691755076,0.46,3097.6,3096.8,0.61888066]
[1641691755320,1.26746,3097.6,3096.9,3.27550981]
[1641691755520,1.26746,3097.6,3096.9,0.02501063]
[1641691755925,0.07118739,3097.5,3096.9,0.02501063]
[1641691756124,5.756,3097.1,3096.3,4.7598]
[1641691756323,5.756,3097.1,3095.6,0.0036018]
[1641691756324,5.756,3096.7,3095.7,0.9205477]
[1641691756528,0.46,3097.0,3095.7,0.9205477]
[1641691756529,4.7,3096.3,3095.7,0.9205477]
[1641691756823,7.81625,3096.3,3096.0,7.369e-05]
[1641691757026,4.7,3096.1,3095.7,0.9205477]
[1641691757223,0.46,3096.0,3095.8,0.00113685]
[1641691757423,0.46,3096.0,3095.8,3.685e-05]
[1641691757624,4.87231577,3095.9,3095.6,0.0036018]
[1641691757825,1.26792,3095.8,3095.6,0.0036018]
[1641691758225,0.16751577,3095.9,3095.6,0.0036018]
[1641691758226,0.00113684,3096.2,3095.6,2.21471384]
[1641691758625,0.00170527,3096.1,3095.6,0.0036018]
[1641691759076,0.00113685,3096.0,3095.9,0.78426696]
[1641691759475,0.80761,3096.5,3095.9,2.64515546]
[1641691759674,2.42315,3096.9,3095.9,2.04515546]
[1641691759874,2.42315,3096.9,3096.0,2.21111204]
[1641691759875,0.00227369,3096.4,3096.0,2.21111204]
[1641691760080,0.00227369,3096.4,3096.3,1.24129176]
[1641691760276,0.13819997,3097.0,3096.1,7.82151204]
[1641691760575,0.13819997,3097.0,3096.9,0.65381891]
[1641691760776,0.13819997,3097.0,3096.3,2.33864589]
[1641691760974,0.1438842,3097.0,3096.3,2.33864589]
[1641691761175,0.7594,3097.2,3097.0,0.13819997]
[1641691761380,0.19278739,3097.7,3097.0,0.13819997]
[1641691761381,0.07118739,3098.2,3097.1,6.09677685]
[1641691761581,0.1264,3098.3,3097.7,1.14944849]
[1641691761582,1.61439,3098.3,3097.7,1.14944849]
[1641691761776,1.56439,3098.3,3097.7,1.14944849]
[1641691761975,8.02428634,3098.5,3097.7,1.14944849]
[1641691762376,0.00795793,3098.4,3097.7,1.14944849]
[1641691762576,0.80716,3098.2,3097.2,3.40369324]
[1641691762825,0.80716,3098.2,3097.3,0.3]
[1641691763023,0.00625266,3098.1,3097.4,2.40369324]
[1641691763321,0.00568424,3098.0,3097.4,2.40369324]
[1641691763520,0.00568424,3098.0,3097.4,3.70369324]
[1641691763721,8.02428634,3098.5,3097.6,2.2]
[1641691763922,8.02428634,3098.5,3097.4,2.70369324]
[1641691763923,8.83136634,3098.5,3097.7,2.3066045]
[1641691764124,8.83136634,3098.5,3097.7,0.00113684]
[1641691764125,0.00284212,3098.4,3097.7,0.00113684]
[1641691764420,8.83136634,3098.5,3097.6,0.00170527]
[1641691764421,0.0022737,3098.3,3097.6,0.00170527]
[1641691764822,8.83136634,3098.5,3098.1,1.04596182]
[1641691764823,0.00170527,3098.2,3098.1,1.04596182]
[1641691765022,0.00170527,3098.2,3098.1,3.29718758]
[1641691765221,0.00170527,3098.2,3098.1,3.94179525]
[1641691765422,0.00170527,3098.2,3098.1,1.64596182]
[1641691765822,0.00170527,3098.2,3098.1,1.04596182]
[1641691766223,0.00170527,3098.2,3098.1,3.28676779]
[1641691766469,0.00170527,3098.2,3098.1,1.04596182]
[1641691766673,0.00170527,3098.2,3097.8,2.41309183]
[1641691766876,0.00170527,3098.2,3097.8,3.01309183]
[1641691767072,0.00113685,3098.1,3097.8,4.01309183]
[1641691767370,0.00113685,3098.1,3097.8,2.41309183]
[1641691767671,0.00113685,3098.1,3098.0,1.09635661]
[1641691767872,0.00113685,3098.1,3098.0,3.48524354]
[1641691768273,3.685e-05,3098.1,3098.0,4.48524354]
[1641691768478,3.685e-05,3098.1,3098.0,5.24524354]
[1641691768677,6.40482319,3098.5,3098.1,4.7]
[1641691768876,6.40482319,3098.5,3098.3,18.84]
[1641691769177,6.40482319,3098.5,3098.4,26.24525932]
[1641691769374,1.64756639,3098.9,3098.5,4.7]
[1641691769575,1.64756639,3098.9,3098.6,24.11221733]
[1641691771022,1.64756639,3098.9,3098.7,1.0]
[1641691771322,1.64756639,3098.9,3098.8,2.40797433]
[1641691771726,1.65211378,3098.9,3098.8,2.40797433]
[1641691771928,1.65211378,3098.9,3098.7,2.15016722]
[1641691772124,1.65211378,3098.9,3097.8,0.46]
[1641691772326,0.01253571,3098.8,3097.7,4.9731]
[1641691772522,0.01253571,3098.8,3097.9,0.00511581]
[1641691772722,0.01253571,3098.8,3097.8,0.00568423]
[1641691773124,0.00113685,3099.0,3097.8,0.00568423]
[1641691773422,0.00113685,3099.0,3098.5,1.20045816]
[1641691773623,0.00113685,3099.0,3098.5,1.80045816]
[1641691773824,0.00113685,3099.0,3098.6,0.00113684]
[1641691774074,0.00113685,3099.0,3098.8,0.99091757]
[1641691774278,0.00170527,3098.9,3098.8,0.99091757]
[1641691774874,0.00170527,3098.9,3098.5,1.20045816]
[1641691775176,0.00113684,3098.8,3097.9,0.5]
[1641691775377,0.00113684,3098.8,3097.5,1.2108]
[1641691775575,0.00227369,3099.0,3098.3,0.00170527]
[1641691775977,0.00170527,3098.9,3098.3,0.00170527]
[1641691776175,0.00170527,3098.9,3098.7,1.20021079]
[1641691776378,1.20021079,3098.7,3098.2,0.0022737]
[1641691776577,0.46,3098.6,3098.2,0.0022737]
[1641691776782,0.46,3098.6,3097.8,0.00454739]
[1641691776977,0.1248,3098.5,3097.8,0.00454739]
[1641691777177,0.1264,3098.5,3097.8,0.00454739]
[1641691777378,0.1304,3098.5,3097.8,0.00454739]
[1641691777580,0.124,3098.4,3097.8,0.00454739]
[1641691777827,2.00746079,3098.7,3097.8,1.00454739]
[1641691777828,1.20021079,3098.7,3097.8,1.00454739]
[1641691778124,1.20021079,3098.7,3097.9,1.40811208]
[1641691778521,1.20021079,3098.7,3098.0,0.00341054]
[1641691779428,0.12467369,3099.0,3098.0,0.00341054]
[1641691779429,0.124,3098.9,3098.0,0.00341054]
[1641691779623,0.00227369,3099.0,3098.0,0.00341054]
[1641691779624,0.12947369,3099.0,3098.0,0.00341054]
[1641691779824,0.80708,3098.4,3097.8,0.00454739]
[1641691782676,1.07416,3098.7,3097.8,0.00454739]
[1641691783074,1.19656,3098.7,3097.8,0.00454739]
[1641691783275,1.07416,3098.7,3097.8,0.00454739]
[1641691783475,0.3542256,3098.9,3097.8,0.00454739]
[1641691783675,0.7422256,3098.9,3097.8,0.00454739]
[1641691783874,0.12193684,3098.8,3097.8,0.00454739]
[1641691784075,0.00113684,3098.8,3097.8,0.00454739]
[1641691784680,0.12353684,3098.8,3097.8,0.00454739]
[1641691784877,0.80708,3098.4,3097.8,0.00454739]
[1641691785722,0.00113684,3098.8,3098.2,1.05844738]
[1641691786427,0.80810684,3098.8,3098.2,1.05844738]
[1641691786825,0.80810684,3098.8,3098.3,0.8252846]
[1641691787027,0.80810684,3098.8,3098.2,1.05844738]
[1641691787232,0.80810684,3098.8,3098.4,0.00113685]
[1641691788127,0.00113684,3098.8,3098.4,0.00113685]
[1641691788327,0.00113684,3098.8,3098.7,1.34482119]
[1641691788728,0.00113684,3098.8,3098.4,0.00113685]
[1641691788979,1.6141,3098.7,3098.4,0.00113685]
[1641691789178,1.6141,3098.7,3097.8,0.00454739]
[1641691789376,0.80707,3098.3,3097.8,0.00454739]
[1641691789782,1.63517,3098.3,3097.8,0.00454739]
[1641691789980,1.63517,3098.3,3097.7,4.9731]
[1641691789981,5.088,3098.2,3097.7,4.9731]
[1641691790178,5.21587369,3098.2,3097.2,1.60472517]
[1641691790379,1.00170527,3098.1,3097.2,1.60472517]
[1641691790580,0.8073808,3097.9,3097.3,0.00284212]
[1641691790782,0.00113685,3098.0,3097.3,0.00284212]
[1641691791383,0.00113685,3098.0,3097.1,0.00397897]
[1641691791682,1.61477,3097.7,3097.2,1.0318819]
[1641691792288,0.80738,3097.8,3097.2,1.0318819]
[1641691793023,0.00113685,3098.0,3097.2,0.9818819]
[1641691793420,0.00113685,3098.0,3097.2,1.69075138]
[1641691793621,0.00113685,3098.0,3097.2,3.29547655]
[1641691793820,0.80738,3097.8,3097.2,3.29547655]
[1641691794020,0.80738,3097.8,3097.2,2.58660707]
[1641691794620,2.55628271,3098.5,3097.2,2.58660707]
[1641691794621,2.55868271,3098.5,3097.2,2.58660707]
[1641691794824,3.36669271,3098.5,3097.3,0.00397897]
[1641691795020,0.12387369,3098.4,3097.3,0.00397897]
[1641691795225,4.7,3097.7,3097.1,1.60472517]
[1641691795423,0.388,3097.6,3097.1,2.517e-05]
[1641691795623,1.84250527,3097.6,3097.1,2.517e-05]
[1641691795823,4.7,3097.4,3096.3,4.6988]
[1641691796023,1.27143,3096.9,3096.3,4.6988]
[1641691796223,2.24133,3096.9,3096.4,0.00511581]
[1641691796673,0.8076326,3096.7,3096.4,0.00511581]
[1641691797073,1.6153126,3096.7,3096.4,0.00511581]
[1641691797274,3.1,3096.6,3096.3,4.6988]
[1641691797477,3.10113685,3096.6,3096.3,4.6988]
[1641691797975,0.80881685,3096.6,3096.3,4.6988]
[1641691798776,0.00113685,3096.6,3096.3,4.6988]
[1641691798975,0.00113685,3096.6,3096.4,0.99358103]
[1641691799374,2.42234,3097.6,3096.7,1.17946061]
[1641691799775,0.00170527,3096.9,3096.7,1.17946061]
[1641691799976,0.00170527,3096.9,3096.4,0.99358103]
[1641691800231,0.00113684,3096.8,3096.4,0.69358103]
[1641691800825,0.80860684,3096.8,3096.4,0.69358103]
[1641691801028,0.80860684,3096.8,3096.4,1.90824539]
[1641691802728,0.80860684,3096.8,3096.1,3.98736101]
[1641691802927,0.80779,3096.2,3095.6,4.5829]
[1641691803731,2.4233291,3096.2,3095.6,4.5829]
[1641691803977,2.42337,3096.4,3095.6,4.5829]
[1641691804176,0.80772,3095.9,3095.6,4.5829]
[1641691804575,0.00113684,3096.8,3095.6,5.1829]
[1641691804776,0.00113684,3096.8,3096.4,1.12138009]
[1641691804977,0.00113684,3096.8,3095.7,1.0]
[1641691805182,1.61518,3096.3,3095.7,1.0]
[1641691805375,1.61518,3096.3,3095.7,3.17197728]
[1641691805576,1.61518,3096.3,3094.9,3.06887]
[1641691805776,1.61518,3096.3,3095.0,4.9841]
[1641691805777,1.86808,3096.3,3095.0,4.9841]
[1641691805978,0.80783,3095.6,3095.0,4.9841]
[1641691806178,0.80783,3095.6,3095.1,0.00852635]
[1641691806379,0.80783,3095.6,3095.0,4.94262635]
[1641691806380,2.55,3095.5,3095.0,4.94262635]
[1641691806576,2.42375,3095.8,3095.0,4.94262635]
[1641691806577,3.51125,3095.8,3095.0,4.94262635]
[1641691806776,0.00227369,3095.5,3095.0,4.94262635]
[1641691806976,3.51125,3095.8,3095.0,4.94262635]
[1641691806977,0.00341054,3095.7,3095.0,4.94262635]
[1641691807176,0.80791,3095.3,3095.0,4.94262635]
[1641691809222,0.03829428,3095.2,3095.0,4.94262635]
[1641691809523,0.07658856,3095.2,3095.0,8.14262635]
[1641691809923,1.33238692,3095.7,3095.3,1.11941428]
[1641691810122,0.128,3096.5,3095.1,0.00284211]
[1641691810327,1.61582,3095.4,3095.1,0.00284211]
[1641691810723,2.42373,3095.7,3095.1,0.00284211]
[1641691811123,0.8079302,3095.6,3095.1,0.00284211]
[1641691811323,1.61585,3095.4,3095.1,0.00284211]
[1641691813177,2.52845,3095.4,3095.1,0.00284211]
[1641691813376,2.52845,3095.4,3095.0,8.14262635]
[1641691813377,4.1444718,3095.4,3095.0,8.14262635]
[1641691813577,0.80808,3095.2,3095.0,8.14262635]
[1641691814276,0.80808,3095.2,3095.0,3.2]
[1641691816725,4.75,3095.1,3094.4,4.7868]
[1641691817038,4.75,3095.1,3093.2,1.62815239]
[1641691817039,0.8082368,3094.6,3094.5,0.00341055]
[1641691817225,0.8082368,3094.6,3093.2,0.01201239]
[1641691817226,3.15,3094.5,3093.3,8.9374]
[1641691817626,3.15,3094.5,3093.3,8.94422108]
[1641691817823,0.80824,3093.9,3093.3,8.94422108]
[1641691818027,1.81754,3093.9,3093.3,14.01340673]
[1641691818225,1.81754,3093.9,3093.3,10.12110673]
[1641691819069,1.81754,3093.9,3093.7,1.22376852]
[1641691819274,0.80813,3094.2,3093.7,1.22376852]
[1641691819474,0.1232,3095.1,3093.8,0.00397896]
[1641691819671,0.13933682,3095.3,3093.8,0.00397896]
[1641691819672,0.26299997,3095.3,3093.8,0.01627314]
[1641691819871,0.13819997,3095.3,3094.6,0.63067547]
[1641691820072,0.00341055,3095.1,3094.6,0.63067547]
[1641691820470,0.00284212,3095.0,3094.6,0.63067547]
[1641691820675,0.80793,3094.9,3093.9,0.30341054]
[1641691820871,0.0022737,3094.9,3094.2,1.14126861]
[1641691821071,0.00170527,3094.8,3094.2,1.14126861]
[1641691821271,0.00170527,3094.8,3094.3,0.00113684]